Cogmind - Beta 13 @@@ ROGUE MODE // 2024.04.07 @ 16:11:14 Player: Spuddz Result: Self-destructed Performance ------------- Evolutions (2) 1000 Regions Visited (5) 1000 Robots Destroyed (53) 265 Value Destroyed (1455) 1455 Prototype IDs (0) 0 Alien Tech Used (0) 0 Bonus (58) 58 TOTAL SCORE: 3778 Bonus ------- Follower Combat Kills 58 Cogmind --------- Core Integrity 407/550 Matter 139/300 Energy 125/250 System Corruption 0% Temperature Cool (9) Movement Core (350) Ox6 Location -8/Materials Parts ------- > --- POWER (1) -------- Ion Engine > --- PROPULSION (3) --- (None) > --- UTILITY (3) ------ Heat Sink Medium Storage Unit > --- WEAPON (4) ------- Makeshift Hammer > --- INVENTORY (10) --- Light Angular Momentum Engine Hacking Suite Hacking Suite Hacking Suite Peak State ------------ > --- POWER ------------ Ion Engine > --- PROPULSION ------- Light Treads Light Treads Advanced Treads > --- UTILITY ---------- Medium Storage Unit Light Armor Plating > --- WEAPON ----------- Heavy Assault Rifle Light Cannon Light Cannon Grenade Launcher > --- INVENTORY -------- Ion Engine Light Angular Momentum Engine Heat Sink Structural Scanner Hacking Suite Hacking Suite Light Assault Rifle Grenade Launcher Makeshift Hammer [Rating: 15] Favorites ----------- Power Ion Engine Engine Ion Engine Propulsion Light Treads Treads Light Treads Leg Aluminum Leg Utility Medium Storage Unit Device Heat Sink Storage Medium Storage Unit Protection Light Armor Plating Weapon Light Cannon Ballistic Gun Heavy Assault Rifle Ballistic Cannon Light Cannon Launcher Grenade Launcher Impact Weapon Makeshift Hammer Slashing Weapon Mining Claw Build | -11 -10 -10 -9 -9 -8 ------- Run | Yrd Mat Min Mat Min Mat Slots Evolved 4 | . . . 2 . 2 Power . | . . . . . . Propulsion 1 | . . . . . 1 Utility 1 | . . . . . 1 Weapon 2 | . . . 2 . . Parts Attached 31 | 1 10 7 4 . 9 Power 2 | . 1 . . . 1 Engine 2 | . 1 . . . 1 Core . | . . . . . . Reactor . | . . . . . . Propulsion 6 | . 2 2 1 . 1 Treads 6 | . 2 2 1 . 1 Leg . | . . . . . . Wheel . | . . . . . . Hover . | . . . . . . Flight . | . . . . . . Utility 7 | . 2 2 . . 3 Device 3 | . 1 . . . 2 Storage 1 | . 1 . . . . Processor . | . . . . . . Hackware . | . . . . . . Protection 3 | . . 2 . . 1 Artifact . | . . . . . . Weapon 16 | 1 5 3 3 . 4 Energy Gun . | . . . . . . Energy Cannon . | . . . . . . Ballistic Gun 5 | 1 1 . 2 . 1 Ballistic Cannon 6 | . 3 2 . . 1 Launcher 3 | . . 1 1 . 1 Special Weapon . | . . . . . . Impact Weapon 1 | . . . . . 1 Slashing Weapon 1 | . 1 . . . . Piercing Weapon . | . . . . . . Special Melee Weapon . | . . . . . . Unidentified Prototypes . | . . . . . . Corrupted Parts 1 | . . 1 . . . System Corruption 2 | . . 2 . . . Parts Lost 14 | . . . . . 14 Power 1 | . . . . . 1 Propulsion 3 | . . . . . 3 Utility 3 | . . . . . 3 Weapon 7 | . . . . . 7 Highest Loss Streak 8 | . . . . . 8 To Critical Strikes . | . . . . . . Average Slot Usage (%) 96 | . 96 100 90 100 89 Engine 12 | . 14 14 11 11 9 Treads 22 | . 17 28 21 22 22 Leg 2 | . 10 . . . . Device 4 | . 10 1 . . 10 Storage 12 | . 14 14 11 11 9 Protection 7 | . . 12 11 11 4 Ballistic Gun 8 | . 14 . 9 11 11 Ballistic Cannon 20 | . 13 27 22 22 15 Launcher 2 | . . . 4 11 6 Naked Turns . | . . . . . . Heaviest Build 33 | 13 22 24 30 30 33 Greatest Support 62 | 20 40 42 42 42 62 Greatest Overweight (x) 1 | . 1 . 1 . . Average Overweight (x) . | . . . . . . Largest Inventory Capacity 10 | 8 10 10 10 10 10 Average Capacity 9 | 8 9 10 10 10 10 Most Carried 10 | 6 10 10 10 10 10 Average Carried 9 | 6 8 9 9 9 7 Final Capacity 10 | 8 10 10 10 10 10 Final Carried 10 | 6 10 10 10 10 4 Class Distribution -------------------- 59% | Mutant 18% | Scavenger-Tank 15% | Tank 7% | Scavenger-Skirmisher Dominant Class ---------------- Mutant | -10/Materials Mutant | -10/Mines Scavenger-Tank | -9/Materials Tank | -9/Mines Scavenger-Skirmisher | -8/Materials Resources | -11 -10 -10 -9 -9 -8 ----------- Run | Yrd Mat Min Mat Min Mat Matter Collected 1301 | 210 371 293 118 30 279 Remotely . | . . . . . . Salvage Created 1217 | . 582 67 164 23 381 Parts 86 | . 43 7 16 7 13 Haulers Intercepted 2 | . 2 . . . . Recyclers Shooed . | . . . . . . Parts Field Recycled . | . . . . . . Retrieved Matter . | . . . . . . Parts Self-Destructed . | . . . . . . Prevented . | . . . . . . Kills | -11 -10 -10 -9 -9 -8 ------- Run | Yrd Mat Min Mat Min Mat Combat Hostiles Destroyed 41 | . 14 6 7 3 11 Guns 9 | . 5 . 1 1 2 Cannons 22 | . 9 3 3 1 6 AOE 10 | . . 3 3 1 3 Classes Destroyed 11 | . 6 . 1 1 3 Worker 1 | . . . . . 1 Builder 5 | . 4 . . . 1 Tunneler 1 | . . . . 1 . Hauler 2 | . 2 . . . . Operator 2 | . 1 . 1 . . Watcher 1 | . 1 . . . . Swarmer 12 | . 3 3 3 3 . Grunt 25 | . 11 3 2 . 9 Duelist 1 | . . . . . 1 Sentry 2 | . . . 2 . . Heavy 1 | . . . . . 1 Best Kill Streak 6 | . 6 3 4 4 5 Combat Bots Only 5 | . 5 3 4 3 4 Max Kills in Single Turn 3 | . 2 3 1 3 3 Gunslinging . | . . . . . . Exploded 3 | . . 3 1 1 2 Melee . | . . . . . . Uniques/NPCs Destroyed . | . . . . . . Combat | -11 -10 -10 -9 -9 -8 -------- Run | Yrd Mat Min Mat Min Mat Hostile Shots Fired 207 | . 78 29 14 6 80 Missed 58 | . 22 7 4 2 23 Damage Taken 2436 | . 682 348 107 57 1242 Core 296 | . 119 34 . . 143 Absorbed by Shields . | . . . . . . Core Remaining (%) 79 | 100 . 38 . 100 . Volleys Fired 114 | . 53 18 12 2 29 Largest 4 | . 2 2 4 4 4 Hottest 123 | . 70 70 123 123 123 Shots Fired 279 | . 106 36 33 8 96 Gun 106 | . 52 . 10 2 42 Cannon 161 | . 54 35 20 4 48 Launcher 12 | . . 1 3 2 6 Special . | . . . . . . Kinetic 267 | . 106 35 30 6 90 Thermal . | . . . . . . Explosive 12 | . . 1 3 2 6 Electromagnetic . | . . . . . . Robot Hit Streak 16 | . 8 10 7 1 16 Robot Miss Streak 6 | . 3 2 1 6 3 Penetration Max . | . . . . . . Secondary Targets . | . . . . . . Shots Hit Robots 187 | . 75 24 17 1 70 Core Hits 88 | . 32 7 9 3 37 Critical Kills . | . . . . . . Critical Parts Destroyed 1 | . . . . . 1 Critical Strikes 7 | . 2 . 3 . 2 Destroy 1 | . . . . . 1 Blast 6 | . 2 . 3 . 1 Melee Attacks 1 | . 1 . . . . Impact . | . . . . . . Slashing 1 | . 1 . . . . Piercing . | . . . . . . Sneak Attacks . | . . . . . . Combat Hostiles . | . . . . . . Follow-up Attacks . | . . . . . . Damage Inflicted 3786 | . 1151 572 528 124 1411 Guns 899 | . 397 . 96 18 388 Cannons 1992 | . 697 431 203 17 644 Explosions 895 | . 57 141 229 89 379 Melee . | . . . . . . Ramming . | . . . . . . Kinetic 2891 | . 1094 431 299 35 1032 Thermal . | . . . . . . Explosive 895 | . 57 141 229 89 379 Electromagnetic . | . . . . . . Impact . | . . . . . . Slashing . | . . . . . . Piercing . | . . . . . . Highest Corruption 2 | . . 2 . . . Average Corruption 2 | . . 2 . . . Corruption Purged . | . . . . . . Corruption Blocked . | . . . . . . Effects 7 | . . 7 . . . Message Errors 3 | . . 3 . . . Heat Flow Errors 2 | . . 2 . . . Energy Discharges 1 | . . 1 . . . Data Loss (minor) 1 | . . 1 . . . Overload Shots . | . . . . . . Overflow Damage 54 | . 3 18 2 15 16 Projectiles 37 | . 3 18 . . 16 Explosions 17 | . . . 2 15 . Melee . | . . . . . . Knockbacks 26 | . 8 6 . . 12 Impact . | . . . . . . Kinetic 23 | . 7 6 . . 10 Secondary 3 | . 1 . . . 2 Self-Inflicted Damage 66 | . 26 . . 22 18 Shots 4 | . 1 . . 1 2 Rammed 1 | . . 1 . . . Targets Rammed 1 | . . 1 . . . Kicked . | . . . . . . Crushed . | . . . . . . Highest Temperature 269 | . 8 220 99 106 269 Average Temperature 75 | . 4 86 36 56 99 Received Heat Transfer 942 | . 333 150 27 . 432 Effects 1 | . . . . . 1 Energy Bleed 1 | . . . . . 1 Siege Activations . | . . . . . . Robots Corrupted . | . . . . . . Combat Hostiles . | . . . . . . Parts Fried . | . . . . . . Impact Corruptions . | . . . . . . Robots Melted . | . . . . . . Combat Hostiles . | . . . . . . Parts Melted . | . . . . . . Heat Transferred . | . . . . . . Parts Sabotaged . | . . . . . . Parts Stolen . | . . . . . . Parts Stripped . | . . . . . . Power Chain Reactions . | . . . . . . Alert | -11 -10 -10 -9 -9 -8 ------- Run | Yrd Mat Min Mat Min Mat Peak Influence 319 | . 307 165 252 198 319 Initial 113 | . . 113 5 97 76 Average 135 | . 174 105 117 104 176 Maximum Alert Level 1 | . 1 . 1 . 1 Low Security (%) 73 | 100 41 100 64 100 61 Level 1 26 | . 58 . 35 . 38 Level 2 . | . . . . . . Level 3 . | . . . . . . Level 4 . | . . . . . . Level 5 . | . . . . . . High Security . | . . . . . . Max Security . | . . . . . . Squads Dispatched 9 | . 3 . 3 . 3 Investigation 5 | . 2 . 2 . 1 Extermination . | . . . . . . Reinforcement 4 | . 1 . 1 . 2 Assault . | . . . . . . Garrison . | . . . . . . Intercept . | . . . . . . Searches Triggered . | . . . . . . Construction Impeded 1 | . . . . . 1 Haulers Reinforced . | . . . . . . Active Scanning Responses . | . . . . . . Cargo Convoy Interrupts . | . . . . . . Stealth | -11 -10 -10 -9 -9 -8 --------- Run | Yrd Mat Min Mat Min Mat Distress Signals 4 | . 3 . 1 . . Communications Jammed . | . . . . . . Distress Signals . | . . . . . . Times Spotted 58 | . 22 8 9 3 16 Peak Tracking Total 7 | . 5 3 4 3 7 Tactical Retreats 1 | . . . . . 1 Traps | -11 -10 -10 -9 -9 -8 ------- Run | Yrd Mat Min Mat Min Mat Traps Triggered 1 | . . . 1 . . Indirectly . | . . . . . . Trap Hack Attempts . | . . . . . . Triggered . | . . . . . . Disarmed . | . . . . . . Reprogrammed . | . . . . . . Reused . | . . . . . . Traps Extracted . | . . . . . . Installed . | . . . . . . Triggered . | . . . . . . Machines | -11 -10 -10 -9 -9 -8 ---------- Run | Yrd Mat Min Mat Min Mat Machines Disabled 3 | . 1 1 . 1 . Max in Single Turn 1 | . 1 . . 1 . Machines Repaired . | . . . . . . Machines Dismantled . | . . . . . . Machines Sabotaged . | . . . . . . Overloaded Fab Kills . | . . . . . . Hacking | -11 -10 -10 -9 -9 -8 --------- Run | Yrd Mat Min Mat Min Mat Machines Accessed 9 | . 4 1 3 . 1 Terminals 8 | . 4 . 3 . 1 Fabricators . | . . . . . . Repair Stations . | . . . . . . Recycling Units . | . . . . . . Scanalyzers . | . . . . . . Garrison Access . | . . . . . . Total Hacks 23 | . 13 1 6 . 3 Successful 5 | . 3 1 1 . . Failed 18 | . 10 . 5 . 3 Catastrophic 5 | . 2 . 2 . 1 Database Lockouts . | . . . . . . Manual 22 | . 13 . 6 . 3 Terminals 22 | . 13 . 6 . 3 Fabricators . | . . . . . . Repair Stations . | . . . . . . Recycling Units . | . . . . . . Scanalyzers . | . . . . . . Garrison Access . | . . . . . . Terminal Hacks 3 | . 1 1 1 . . Open Door 1 | . . 1 . . . Branch Access Points 2 | . 1 . 1 . . Fabricator Hacks . | . . . . . . Repair Station Hacks . | . . . . . . Recycling Unit Hacks . | . . . . . . Scanalyzer . | . . . . . . Garrison Access Hacks . | . . . . . . Unauthorized Hacks 2 | . 2 . . . . Terminals 2 | . 2 . . . . Assimilate 2 | . 2 . . . . Fabricators . | . . . . . . Repair Stations . | . . . . . . Recycling Units . | . . . . . . Scanalyzers . | . . . . . . Garrison Access . | . . . . . . Data Cores Recovered . | . . . . . . Used . | . . . . . . Hacking Detections 6 | . 3 . 2 . 1 Full Trace Events 6 | . 3 . 2 . 1 Feedback Events . | . . . . . . Feedback Blocked . | . . . . . . Robot Schematics Acquired . | . . . . . . Robots Built . | . . . . . . Authchips . | . . . . . . Time . | . . . . . . Total Robot Build Rating . | . . . . . . Part Schematics Acquired . | . . . . . . Parts Built . | . . . . . . Authchips . | . . . . . . Time . | . . . . . . Total Part Build Rating . | . . . . . . Parts Repaired . | . . . . . . Time . | . . . . . . Parts Recycled . | . . . . . . Recycled Matter . | . . . . . . Retrieved Matter . | . . . . . . Retrieved Components . | . . . . . . Parts Scanalyzed . | . . . . . . Part Schematics Acquired . | . . . . . . Parts Damaged . | . . . . . . Bothacking | -11 -10 -10 -9 -9 -8 ------------ Run | Yrd Mat Min Mat Min Mat Used RIF Installer . | . . . . . . Robots Hacked . | . . . . . . Non-combat . | . . . . . . Combat . | . . . . . . Robot Hacks Applied . | . . . . . . Relay Couplers Released . | . . . . . . Fabnet Peak Effective % . | . . . . . . Robots Rewired . | . . . . . . Allies Hacked . | . . . . . . Hacks Repelled . | . . . . . . Allies | -11 -10 -10 -9 -9 -8 -------- Run | Yrd Mat Min Mat Min Mat Total Allies 2 | . . 2 . . . Largest Group 2 | . . 2 1 . . Highest-Rated Group 41 | . . 41 10 . . Highest-Rated Ally 31 | . . 31 10 . . Total Orders . | . . . . . . Ally Attacks 8 | . . 8 . . . Total Damage 82 | . . 82 . . . Kills 2 | . . 2 . . . Allies Corrupted . | . . . . . . Allies Melted . | . . . . . . Intel | -11 -10 -10 -9 -9 -8 ------- Run | Yrd Mat Min Mat Min Mat Robot Analysis Total . | . . . . . . Derelict Logs Recovered 1 | . . 1 . . . Drone Launches . | . . . . . . Drone Recoveries . | . . . . . . Exploration | -11 -10 -10 -9 -9 -8 ------------- Run | Yrd Mat Min Mat Min Mat Turns Passed 2523 | 4 701 810 348 308 352 Spaces Moved 1287 | 3 319 442 187 198 138 Core . | . . . . . . Treads 1151 | . 186 442 187 198 138 Legs 136 | 3 133 . . . . Wheels . | . . . . . . Hover . | . . . . . . Flight . | . . . . . . Fastest Speed 120 | 120 120 152 152 152 155 Average Speed 151 | 120 143 156 152 152 156 Slowest Speed 240 | 120 190 160 240 152 160 Overloaded Moves . | . . . . . . Propulsion Burnouts . | . . . . . . Robots Hopped . | . . . . . . Cave-ins Triggered . | . . . . . . Exploration Rate (%) 39 | 2 52 84 24 58 15 Regions Visited 5 Branch Regions 2 Pre-discovered Areas . | . . . . . . Known Exits Taken 2 | . 1 . 1 . . Unknown Exits Taken 3 | 1 . 1 . 1 . Scrap Searched 4 | . . 3 . 1 . Spaces Dug 1 | . 1 . . . . Terrain Destroyed 101 | . 9 7 18 14 53 Melee 1 | . 1 . . . . Projectile 1 | . . . . . 1 AOE 99 | . 8 7 18 14 52 Terrain Rammed . | . . . . . . Walls Destroyed . | . . . . . . Machines Disabled . | . . . . . . Actions | -11 -10 -10 -9 -9 -8 --------- Run | Yrd Mat Min Mat Min Mat Total 1623 | 3 456 528 223 201 212 Wait 150 | . 53 45 19 . 33 Move 1282 | 2 318 441 186 197 138 Hop . | . . . . . . Pick Up 25 | . 12 7 2 1 3 Fast Attach 3 | . 1 . 2 . . Attach 12 | . . 1 2 . 9 Detach . | . . . . . . Swap 16 | 1 9 6 . . . Drop 19 | . 9 9 . 1 . Fire 114 | . 53 18 12 2 29 Melee 1 | . 1 . . . . Ram . | . . . . . . Kick . | . . . . . . Crush 1 | . . 1 . . . Escape Stasis . | . . . . . . Rewire . | . . . . . . Trap . | . . . . . . Miscellaneous . | . . . . . . Route ------- -11/Scrapyard -10/Materials -10/Mines -9/Materials (discovered 3 exits: *Min x2 / *Sto) -9/Mines -8/Materials (discovered 1 exit: [*Fac]) History --------- Turn | Location | Event 3 | -11/Scrapyard | Discovered new exit (range 1) 5 | -11/Scrapyard | Entered Materials 81 | -10/Materials | Identified exit to Mines 308 | -10/Materials | Build established: Mutant 706 | -10/Materials | Entered Mines 712 | -10/Mines | Met a Derelict bent on vengeance 727 | -10/Mines | Core integrity fell below 50% 857 | -10/Mines | Learned Materials terminal intel 877 | -10/Mines | A weapon hastily lodged in a ceiling crevice suddenly fell to the ground 1092 | -10/Mines | Met a Derelict who couldn't figure out how to use a Trap Extractor 1159 | -10/Mines | Joined a pair of Derelicts in attacking an 0b10 outpost 1497 | -10/Mines | Discovered new exit (range 9) 1516 | -10/Mines | Entered Materials 1516 | -9/Materials | Accompanied by 1 ally 1516 | -9/Materials | Evolved 2 slots: Weapon x2 1517 | -9/Materials | Loaded intel: 12 terminal locations 1712 | -9/Materials | Discovered new exit (range 12) 1767 | -9/Materials | Identified exit to Mines 1767 | -9/Materials | Identified exit to Storage 1864 | -9/Materials | Entered Mines 2075 | -9/Mines | Build established: Tank 2147 | -9/Mines | Discovered new exit (range 9) 2172 | -9/Mines | Entered Materials 2172 | -8/Materials | Evolved 2 slots: Propulsion x1, Utility x1 2405 | -8/Materials | Lost 3 parts (1n2w) 2502 | -8/Materials | Discovered new exit (range 16) 2524 | -8/Materials | Self-destructed Last Messages --------------- 02503_ G-47 Trooper knocked back. 02505_ Lgt. Treads destroyed. 02507_ G-47 Trooper destroyed. 02507_ G-47 Trooper knocked back. 02510_ L-31 Rogue knocked back. 02511_ Ion Engine destroyed. 02511_ Lgt. Cannon destroyed. 02512_ U-05 Engineer builds a Wall. 02513_ L-31 Rogue suffers critical hit (Destroy). 02513_ Destroyed Imp. Aluminum Leg. 02513_ G-47 Trooper knocked back. 02516_ Hvy. Assault Rifle destroyed. 02517_ Lgt. Assault Rifle destroyed. 02517_ L-31 Rogue destroyed. 02517_ Structural Scanner destroyed. 02519_ G-47 Trooper knocked back. 02521_ Lgt. Cannon destroyed. 02524_ U-05 Engineer lays Concrete. 02524_ Lgt. Treads destroyed. Map ----- +----------------------------------------------------+ | ?????????????????????????????????????????????????? | | ?????????????????????????????????????????????????? | | ?????????????????????????????????????????????????? | | ?????????????????????????????????????????????????? | | ?????????????????????????????????????????????????? | | ????????????????? ?????????????????????????????? | | ????????????????? ##???????????????????????????? | | ??????????????? # ##???????????????????????????? | | ??????????????? # ##???????????????????????????? | | ??????????????? # ##???????????????????????????? | | ??????????????? # ##???????????????????????????? | | ??????????????? # ##???????????????????????????? | | ???????????? # ##???????????????????????????? | | ????????????##+## ##???????????????????????????? | | ###?????????## ## ##???????????????????????????? | | ###?????????## ## %##???????????????????????????? | | ##?????????## ## ##???????????????????????????? | | ##????####### ## ##???????????????????????????? | | ##????#######+## ##???????????????????????????? | | ##????## ! *#[%%##???????????????????????????? | | ##????## ! "= ##????####???????????????????? | | ##????## = /=# ##########???????????????????? | | ##????########## ####### ##???????????????????? | | ################ ## # #######??????????????? | | ################ %#### ########??????????????? | | g %%@= [%= ????????? | | " %g[!% !%u! %